Workbook

Sheet Master
A1: Principal Government Senior Scondary School, Rooppura
A2: dk;kZy; jktdh; mPp ek/;fed fo|ky;] :iiwjk ¼dqpkeu flVh½
A3: Name Of Employee | C3: Ashwini Kumar | G3: If GPF Employee select "NO" | I3: Yes
A5: Post | C5: Senior Teacher
A7: Type Of Areear | C7: Notional Arrear | D7: From | E7: OCT | F7: 2019 | G7: to | H7: FEB | I7: 2020
A9: To Be Darwn | F9: Already Drawn
A10: Month | B10: Basic | C10: DA Rate | D10: HRA Rate | F10: Month | G10: Basic | H10: DA Rate | I10: HRA Rate
A11: JAN | B11: 36900 | C11: 0.17 | D11: 0.08 | F11: JAN | G11: 23700 | H11: 0 | I11: 0
A12: FEB | B12: 36900 | C12: 0.17 | D12: 0.08 | F12: FEB | G12: 23700 | H12: 0 | I12: 0
A13: MAR | F13: MAR
A14: APR | F14: APR
A15: MAY | F15: MAY
A16: JUN | F16: JUN
A17: JUL | F17: JUL
A18: AUG | F18: AUG
A19: SEP | F19: SEP
A20: OCT | B20: 28567 | C20: 0.17 | D20: 0.08 | F20: OCT | G20: 18348 | H20: 0 | I20: 0
A21: NOV | B21: 36900 | C21: 0.17 | D21: 0.08 | F21: NOV | G21: 23700 | H21: 0 | I21: 0
A22: DEC | B22: 36900 | C22: 0.17 | D22: 0.08 | F22: DEC | G22: 23700 | H22: 0 | I22: 0
B25: For Seal
B26: Principal
B27: Government Senior Secondary School
B28: Rooppura (Kuchaman City)

Sheet Arrear Sheet
A1: =Master!$A$1 -> Principal Government Senior Scondary School, Rooppura
A2: =Master!C7&" "&Master!D7&" "&Master!E7&" "&Master!F7&" "&Master!G7&" "&Master!H7&" "&Master!I7 -> Notional Arrear From OCT 2019 to FEB 2020
A3: =Master!A3&"-"&" "&Master!C3&","&" "&Master!A5&"-"&" "&Master!C5 -> Name Of Employee- Ashwini Kumar, Post- Senior Teacher
AG4: ftu dkWyEl dh vko';drk ugh gks mUgsa gkbZM dj nsos ,oa ist lsV vi esa izfr'kr c<k ysos A
A5: S.No. | B5: Month | C5: To Be Drawn | G5: Alread Drawn | K5: Difference | O5: Deductions | AD5: Total Deductions | AE5: Net | AX5: JAN
C6: Basic | D6: DA | E6: HRA | F6: Total | G6: Basic | H6: DA | I6: HRA | J6: Total | K6: Basic | L6: DA | M6: HRA | N6: Total | O6: NPS | R6: GPF | U6: SI | X6: RPMF | AA6: ITAX | AX6: FEB
O7: Due | P7: Drawn | Q7: Diff | R7: Due | S7: Drawn | T7: Diff | U7: Due | V7: Drawn | W7: Diff | X7: Due | Y7: Drawn | Z7: Diff | AA7: Due | AB7: Drawn | AC7: Diff | AX7: MAR
A8: =IF(B8="","",ROWS($A$1:A1)) -> 1 | B8: OCT | C8: =IFERROR(VLOOKUP(B8,Master!$A$10:$D$22,2,0),0) -> 28567 | D8: =IFERROR(ROUND(VLOOKUP(B8,Master!$A$10:$D$22,2,0)*VLOOKUP(B8,Master!$A$10:$D$22,3,0),0),0) -> 4856 | E8: =IFERROR(ROUND(VLOOKUP(B8,Master!$A$10:$D$22,2,0)*VLOOKUP(B8,Master!$A$10:$D$22,4,0),0),0) -> 2285 | F8: =SUM(C8:E8) -> 35708 | G8: =IFERROR(VLOOKUP(B8,Master!$F$10:$I$22,2,0),0) -> 18348 | H8: =IFERROR(ROUND(VLOOKUP(B8,Master!$F$10:$I$22,2,0)*VLOOKUP(B8,Master!$F$10:$I$22,3,0),0),0) -> 0 | I8: =IFERROR(ROUND(VLOOKUP(B8,Master!$F$10:$I$22,2,0)*VLOOKUP(B8,Master!$F$10:$I$22,4,0),0),0) -> 0 | J8: =SUM(G8:I8) -> 18348 | K8: =IFERROR(C8-G8,0) -> 10219 | L8: =IFERROR(D8-H8,0) -> 4856 | M8: =IFERROR(E8-I8,0) -> 2285 | N8: =SUM(K8:M8) -> 17360 | O8: =IFERROR(ROUND(IF(Master!$I$3="YES",SUM('Arrear Sheet'!C8+'Arrear Sheet'!D8)*10%,""),0),0) -> 3342 | P8: =IFERROR(ROUND(IF(Master!$I$3="YES",SUM('Arrear Sheet'!G8+'Arrear Sheet'!H8)*10%,""),0),0) -> 1835 | Q8: =IFERROR(O8-P8,0) -> 1507 | T8: =R8-S8 -> 0 | W8: =U8-V8 -> 0 | Z8: =X8-Y8 -> 0 | AC8: =AA8-AB8 -> 0 | AD8: =Q8+T8+W8+Z8+AC8 -> 1507 | AE8: =N8-AD8 -> 15853 | AX8: APR
A9: =IF(B9="","",ROWS($A$1:A2)) -> 2 | B9: NOV | C9: =IFERROR(VLOOKUP(B9,Master!$A$10:$D$22,2,0),0) -> 36900 | D9: =IFERROR(ROUND(VLOOKUP(B9,Master!$A$10:$D$22,2,0)*VLOOKUP(B9,Master!$A$10:$D$22,3,0),0),0) -> 6273 | E9: =IFERROR(ROUND(VLOOKUP(B9,Master!$A$10:$D$22,2,0)*VLOOKUP(B9,Master!$A$10:$D$22,4,0),0),0) -> 2952 | F9: =SUM(C9:E9) -> 46125 | G9: =IFERROR(VLOOKUP(B9,Master!$F$10:$I$22,2,0),0) -> 23700 | H9: =IFERROR(ROUND(VLOOKUP(B9,Master!$F$10:$I$22,2,0)*VLOOKUP(B9,Master!$F$10:$I$22,3,0),0),0) -> 0 | I9: =IFERROR(ROUND(VLOOKUP(B9,Master!$F$10:$I$22,2,0)*VLOOKUP(B9,Master!$F$10:$I$22,4,0),0),0) -> 0 | J9: =SUM(G9:I9) -> 23700 | K9: =IFERROR(C9-G9,0) -> 13200 | L9: =IFERROR(D9-H9,0) -> 6273 | M9: =IFERROR(E9-I9,0) -> 2952 | N9: =SUM(K9:M9) -> 22425 | O9: =IFERROR(ROUND(IF(Master!$I$3="YES",SUM('Arrear Sheet'!C9+'Arrear Sheet'!D9)*10%,""),0),0) -> 4317 | P9: =IFERROR(ROUND(IF(Master!$I$3="YES",SUM('Arrear Sheet'!G9+'Arrear Sheet'!H9)*10%,""),0),0) -> 2370 | Q9: =IFERROR(O9-P9,0) -> 1947 | T9: =R9-S9 -> 0 | W9: =U9-V9 -> 0 | Z9: =X9-Y9 -> 0 | AC9: =AA9-AB9 -> 0 | AD9: =Q9+T9+W9+Z9+AC9 -> 1947 | AE9: =N9-AD9 -> 20478 | AX9: MAY
A10: =IF(B10="","",ROWS($A$1:A3)) -> 3 | B10: DEC | C10: =IFERROR(VLOOKUP(B10,Master!$A$10:$D$22,2,0),0) -> 36900 | D10: =IFERROR(ROUND(VLOOKUP(B10,Master!$A$10:$D$22,2,0)*VLOOKUP(B10,Master!$A$10:$D$22,3,0),0),0) -> 6273 | E10: =IFERROR(ROUND(VLOOKUP(B10,Master!$A$10:$D$22,2,0)*VLOOKUP(B10,Master!$A$10:$D$22,4,0),0),0) -> 2952 | F10: 46125 | G10: =IFERROR(VLOOKUP(B10,Master!$F$10:$I$22,2,0),0) -> 23700 | H10: =IFERROR(ROUND(VLOOKUP(B10,Master!$F$10:$I$22,2,0)*VLOOKUP(B10,Master!$F$10:$I$22,3,0),0),0) -> 0 | I10: =IFERROR(ROUND(VLOOKUP(B10,Master!$F$10:$I$22,2,0)*VLOOKUP(B10,Master!$F$10:$I$22,4,0),0),0) -> 0 | J10: 23700 | K10: 13200 | L10: 6273 | M10: 2952 | N10: 22425 | O10: =IFERROR(ROUND(IF(Master!$I$3="YES",SUM('Arrear Sheet'!C10+'Arrear Sheet'!D10)*10%,""),0),0) -> 4317 | P10: =IFERROR(ROUND(IF(Master!$I$3="YES",SUM('Arrear Sheet'!G10+'Arrear Sheet'!H10)*10%,""),0),0) -> 2370 | Q10: 1947 | T10: 0 | W10: 0 | Z10: 0 | AC10: 0 | AD10: 1947 | AE10: 20478 | AX10: JUN
A11: =IF(B11="","",ROWS($A$1:A4)) -> 4 | B11: JAN | C11: =IFERROR(VLOOKUP(B11,Master!$A$10:$D$22,2,0),0) -> 36900 | D11: =IFERROR(ROUND(VLOOKUP(B11,Master!$A$10:$D$22,2,0)*VLOOKUP(B11,Master!$A$10:$D$22,3,0),0),0) -> 6273 | E11: =IFERROR(ROUND(VLOOKUP(B11,Master!$A$10:$D$22,2,0)*VLOOKUP(B11,Master!$A$10:$D$22,4,0),0),0) -> 2952 | F11: 46125 | G11: =IFERROR(VLOOKUP(B11,Master!$F$10:$I$22,2,0),0) -> 23700 | H11: =IFERROR(ROUND(VLOOKUP(B11,Master!$F$10:$I$22,2,0)*VLOOKUP(B11,Master!$F$10:$I$22,3,0),0),0) -> 0 | I11: =IFERROR(ROUND(VLOOKUP(B11,Master!$F$10:$I$22,2,0)*VLOOKUP(B11,Master!$F$10:$I$22,4,0),0),0) -> 0 | J11: 23700 | K11: 13200 | L11: 6273 | M11: 2952 | N11: 22425 | O11: =IFERROR(ROUND(IF(Master!$I$3="YES",SUM('Arrear Sheet'!C11+'Arrear Sheet'!D11)*10%,""),0),0) -> 4317 | P11: =IFERROR(ROUND(IF(Master!$I$3="YES",SUM('Arrear Sheet'!G11+'Arrear Sheet'!H11)*10%,""),0),0) -> 2370 | Q11: 1947 | T11: 0 | W11: 0 | Z11: 0 | AC11: 0 | AD11: 1947 | AE11: 20478 | AX11: JUL
A12: =IF(B12="","",ROWS($A$1:A5)) -> 5 | B12: FEB | C12: =IFERROR(VLOOKUP(B12,Master!$A$10:$D$22,2,0),0) -> 36900 | D12: =IFERROR(ROUND(VLOOKUP(B12,Master!$A$10:$D$22,2,0)*VLOOKUP(B12,Master!$A$10:$D$22,3,0),0),0) -> 6273 | E12: =IFERROR(ROUND(VLOOKUP(B12,Master!$A$10:$D$22,2,0)*VLOOKUP(B12,Master!$A$10:$D$22,4,0),0),0) -> 2952 | F12: 46125 | G12: =IFERROR(VLOOKUP(B12,Master!$F$10:$I$22,2,0),0) -> 23700 | H12: =IFERROR(ROUND(VLOOKUP(B12,Master!$F$10:$I$22,2,0)*VLOOKUP(B12,Master!$F$10:$I$22,3,0),0),0) -> 0 | I12: =IFERROR(ROUND(VLOOKUP(B12,Master!$F$10:$I$22,2,0)*VLOOKUP(B12,Master!$F$10:$I$22,4,0),0),0) -> 0 | J12: 23700 | K12: 13200 | L12: 6273 | M12: 2952 | N12: 22425 | O12: =IFERROR(ROUND(IF(Master!$I$3="YES",SUM('Arrear Sheet'!C12+'Arrear Sheet'!D12)*10%,""),0),0) -> 4317 | P12: =IFERROR(ROUND(IF(Master!$I$3="YES",SUM('Arrear Sheet'!G12+'Arrear Sheet'!H12)*10%,""),0),0) -> 2370 | Q12: 1947 | T12: 0 | W12: 0 | Z12: 0 | AC12: 0 | AD12: 1947 | AE12: 20478 | AX12: AUG
A13: =IF(B13="","",ROWS($A$1:A6)) -> 6 | B13: MAY | C13: =IFERROR(VLOOKUP(B13,Master!$A$10:$D$22,2,0),0) -> 0 | D13: =IFERROR(ROUND(VLOOKUP(B13,Master!$A$10:$D$22,2,0)*VLOOKUP(B13,Master!$A$10:$D$22,3,0),0),0) -> 0 | E13: =IFERROR(ROUND(VLOOKUP(B13,Master!$A$10:$D$22,2,0)*VLOOKUP(B13,Master!$A$10:$D$22,4,0),0),0) -> 0 | F13: 0 | G13: =IFERROR(VLOOKUP(B13,Master!$F$10:$I$22,2,0),0) -> 0 | H13: =IFERROR(ROUND(VLOOKUP(B13,Master!$F$10:$I$22,2,0)*VLOOKUP(B13,Master!$F$10:$I$22,3,0),0),0) -> 0 | I13: =IFERROR(ROUND(VLOOKUP(B13,Master!$F$10:$I$22,2,0)*VLOOKUP(B13,Master!$F$10:$I$22,4,0),0),0) -> 0 | J13: 0 | K13: 0 | L13: 0 | M13: 0 | N13: 0 | O13: =IFERROR(ROUND(IF(Master!$I$3="YES",SUM('Arrear Sheet'!C13+'Arrear Sheet'!D13)*10%,""),0),0) -> 0 | P13: =IFERROR(ROUND(IF(Master!$I$3="YES",SUM('Arrear Sheet'!G13+'Arrear Sheet'!H13)*10%,""),0),0) -> 0 | Q13: 0 | T13: 0 | W13: 0 | Z13: 0 | AC13: 0 | AD13: 0 | AE13: 0 | AX13: SEP
A14: =IF(B14="","",ROWS($A$1:A7)) ->  | C14: =IFERROR(VLOOKUP(B14,Master!$A$10:$D$22,2,0),0) -> 0 | D14: =IFERROR(ROUND(VLOOKUP(B14,Master!$A$10:$D$22,2,0)*VLOOKUP(B14,Master!$A$10:$D$22,3,0),0),0) -> 0 | E14: =IFERROR(ROUND(VLOOKUP(B14,Master!$A$10:$D$22,2,0)*VLOOKUP(B14,Master!$A$10:$D$22,4,0),0),0) -> 0 | F14: 0 | G14: =IFERROR(VLOOKUP(B14,Master!$F$10:$I$22,2,0),0) -> 0 | H14: =IFERROR(ROUND(VLOOKUP(B14,Master!$F$10:$I$22,2,0)*VLOOKUP(B14,Master!$F$10:$I$22,3,0),0),0) -> 0 | I14: =IFERROR(ROUND(VLOOKUP(B14,Master!$F$10:$I$22,2,0)*VLOOKUP(B14,Master!$F$10:$I$22,4,0),0),0) -> 0 | J14: 0 | K14: 0 | L14: 0 | M14: 0 | N14: 0 | O14: =IFERROR(ROUND(IF(Master!$I$3="YES",SUM('Arrear Sheet'!C14+'Arrear Sheet'!D14)*10%,""),0),0) -> 0 | P14: =IFERROR(ROUND(IF(Master!$I$3="YES",SUM('Arrear Sheet'!G14+'Arrear Sheet'!H14)*10%,""),0),0) -> 0 | Q14: 0 | T14: 0 | W14: 0 | Z14: 0 | AC14: 0 | AD14: 0 | AE14: 0 | AX14: OCT
A15: =IF(B15="","",ROWS($A$1:A8)) ->  | C15: =IFERROR(VLOOKUP(B15,Master!$A$10:$D$22,2,0),0) -> 0 | D15: =IFERROR(ROUND(VLOOKUP(B15,Master!$A$10:$D$22,2,0)*VLOOKUP(B15,Master!$A$10:$D$22,3,0),0),0) -> 0 | E15: =IFERROR(ROUND(VLOOKUP(B15,Master!$A$10:$D$22,2,0)*VLOOKUP(B15,Master!$A$10:$D$22,4,0),0),0) -> 0 | F15: 0 | G15: =IFERROR(VLOOKUP(B15,Master!$F$10:$I$22,2,0),0) -> 0 | H15: =IFERROR(ROUND(VLOOKUP(B15,Master!$F$10:$I$22,2,0)*VLOOKUP(B15,Master!$F$10:$I$22,3,0),0),0) -> 0 | I15: =IFERROR(ROUND(VLOOKUP(B15,Master!$F$10:$I$22,2,0)*VLOOKUP(B15,Master!$F$10:$I$22,4,0),0),0) -> 0 | J15: 0 | K15: 0 | L15: 0 | M15: 0 | N15: 0 | O15: =IFERROR(ROUND(IF(Master!$I$3="YES",SUM('Arrear Sheet'!C15+'Arrear Sheet'!D15)*10%,""),0),0) -> 0 | P15: =IFERROR(ROUND(IF(Master!$I$3="YES",SUM('Arrear Sheet'!G15+'Arrear Sheet'!H15)*10%,""),0),0) -> 0 | Q15: 0 | T15: 0 | W15: 0 | Z15: 0 | AC15: 0 | AD15: 0 | AE15: 0 | AX15: NOV
A16: =IF(B16="","",ROWS($A$1:A9)) ->  | C16: =IFERROR(VLOOKUP(B16,Master!$A$10:$D$22,2,0),0) -> 0 | D16: =IFERROR(ROUND(VLOOKUP(B16,Master!$A$10:$D$22,2,0)*VLOOKUP(B16,Master!$A$10:$D$22,3,0),0),0) -> 0 | E16: =IFERROR(ROUND(VLOOKUP(B16,Master!$A$10:$D$22,2,0)*VLOOKUP(B16,Master!$A$10:$D$22,4,0),0),0) -> 0 | F16: 0 | G16: =IFERROR(VLOOKUP(B16,Master!$F$10:$I$22,2,0),0) -> 0 | H16: =IFERROR(ROUND(VLOOKUP(B16,Master!$F$10:$I$22,2,0)*VLOOKUP(B16,Master!$F$10:$I$22,3,0),0),0) -> 0 | I16: =IFERROR(ROUND(VLOOKUP(B16,Master!$F$10:$I$22,2,0)*VLOOKUP(B16,Master!$F$10:$I$22,4,0),0),0) -> 0 | J16: 0 | K16: 0 | L16: 0 | M16: 0 | N16: 0 | O16: =IFERROR(ROUND(IF(Master!$I$3="YES",SUM('Arrear Sheet'!C16+'Arrear Sheet'!D16)*10%,""),0),0) -> 0 | P16: =IFERROR(ROUND(IF(Master!$I$3="YES",SUM('Arrear Sheet'!G16+'Arrear Sheet'!H16)*10%,""),0),0) -> 0 | Q16: 0 | T16: 0 | W16: 0 | Z16: 0 | AC16: 0 | AD16: 0 | AE16: 0 | AX16: DEC
A17: =IF(B17="","",ROWS($A$1:A10)) ->  | C17: =IFERROR(VLOOKUP(B17,Master!$A$10:$D$22,2,0),0) -> 0 | D17: =IFERROR(ROUND(VLOOKUP(B17,Master!$A$10:$D$22,2,0)*VLOOKUP(B17,Master!$A$10:$D$22,3,0),0),0) -> 0 | E17: =IFERROR(ROUND(VLOOKUP(B17,Master!$A$10:$D$22,2,0)*VLOOKUP(B17,Master!$A$10:$D$22,4,0),0),0) -> 0 | F17: 0 | G17: =IFERROR(VLOOKUP(B17,Master!$F$10:$I$22,2,0),0) -> 0 | H17: =IFERROR(ROUND(VLOOKUP(B17,Master!$F$10:$I$22,2,0)*VLOOKUP(B17,Master!$F$10:$I$22,3,0),0),0) -> 0 | I17: =IFERROR(ROUND(VLOOKUP(B17,Master!$F$10:$I$22,2,0)*VLOOKUP(B17,Master!$F$10:$I$22,4,0),0),0) -> 0 | J17: 0 | K17: 0 | L17: 0 | M17: 0 | N17: 0 | O17: =IFERROR(ROUND(IF(Master!$I$3="YES",SUM('Arrear Sheet'!C17+'Arrear Sheet'!D17)*10%,""),0),0) -> 0 | P17: =IFERROR(ROUND(IF(Master!$I$3="YES",SUM('Arrear Sheet'!G17+'Arrear Sheet'!H17)*10%,""),0),0) -> 0 | Q17: 0 | T17: 0 | W17: 0 | Z17: 0 | AC17: 0 | AD17: 0 | AE17: 0
A18: =IF(B18="","",ROWS($A$1:A11)) ->  | C18: =IFERROR(VLOOKUP(B18,Master!$A$10:$D$22,2,0),0) -> 0 | D18: =IFERROR(ROUND(VLOOKUP(B18,Master!$A$10:$D$22,2,0)*VLOOKUP(B18,Master!$A$10:$D$22,3,0),0),0) -> 0 | E18: =IFERROR(ROUND(VLOOKUP(B18,Master!$A$10:$D$22,2,0)*VLOOKUP(B18,Master!$A$10:$D$22,4,0),0),0) -> 0 | F18: 0 | G18: =IFERROR(VLOOKUP(B18,Master!$F$10:$I$22,2,0),0) -> 0 | H18: =IFERROR(ROUND(VLOOKUP(B18,Master!$F$10:$I$22,2,0)*VLOOKUP(B18,Master!$F$10:$I$22,3,0),0),0) -> 0 | I18: =IFERROR(ROUND(VLOOKUP(B18,Master!$F$10:$I$22,2,0)*VLOOKUP(B18,Master!$F$10:$I$22,4,0),0),0) -> 0 | J18: 0 | K18: 0 | L18: 0 | M18: 0 | N18: 0 | O18: =IFERROR(ROUND(IF(Master!$I$3="YES",SUM('Arrear Sheet'!C18+'Arrear Sheet'!D18)*10%,""),0),0) -> 0 | P18: =IFERROR(ROUND(IF(Master!$I$3="YES",SUM('Arrear Sheet'!G18+'Arrear Sheet'!H18)*10%,""),0),0) -> 0 | Q18: 0 | T18: 0 | W18: 0 | Z18: 0 | AC18: 0 | AD18: 0 | AE18: 0
A19: =IF(B19="","",ROWS($A$1:A12)) ->  | C19: =IFERROR(VLOOKUP(B19,Master!$A$10:$D$22,2,0),0) -> 0 | D19: =IFERROR(ROUND(VLOOKUP(B19,Master!$A$10:$D$22,2,0)*VLOOKUP(B19,Master!$A$10:$D$22,3,0),0),0) -> 0 | E19: =IFERROR(ROUND(VLOOKUP(B19,Master!$A$10:$D$22,2,0)*VLOOKUP(B19,Master!$A$10:$D$22,4,0),0),0) -> 0 | F19: 0 | G19: =IFERROR(VLOOKUP(B19,Master!$F$10:$I$22,2,0),0) -> 0 | H19: =IFERROR(ROUND(VLOOKUP(B19,Master!$F$10:$I$22,2,0)*VLOOKUP(B19,Master!$F$10:$I$22,3,0),0),0) -> 0 | I19: =IFERROR(ROUND(VLOOKUP(B19,Master!$F$10:$I$22,2,0)*VLOOKUP(B19,Master!$F$10:$I$22,4,0),0),0) -> 0 | J19: 0 | K19: 0 | L19: 0 | M19: 0 | N19: 0 | O19: =IFERROR(ROUND(IF(Master!$I$3="YES",SUM('Arrear Sheet'!C19+'Arrear Sheet'!D19)*10%,""),0),0) -> 0 | P19: =IFERROR(ROUND(IF(Master!$I$3="YES",SUM('Arrear Sheet'!G19+'Arrear Sheet'!H19)*10%,""),0),0) -> 0 | Q19: 0 | T19: 0 | W19: 0 | Z19: 0 | AC19: 0 | AD19: 0 | AE19: 0
A20: Total | C20: =SUM(C8:C19) -> 176167 | D20: =SUM(D8:D19) -> 29948 | E20: 14093 | F20: 220208 | G20: 113148 | H20: 0 | I20: 0 | J20: 113148 | K20: 63019 | L20: 29948 | M20: 14093 | N20: 107060 | O20: 20610 | P20: 11315 | Q20: 9295 | R20: 0 | S20: 0 | T20: 0 | U20: 0 | V20: 0 | W20: 0 | X20: 0 | Y20: 0 | Z20: 0 | AA20: 0 | AB20: 0 | AC20: 0 | AD20: 9295 | AE20: 97765
A22: Rupees In Words- | F22: =PROPER(SpellNumber($AE$20)) -> Ninety-Seven Thousand Seven Hundred Sixty-Five
Z24: =Master!B26 -> Principal
Z25: =Master!B27 -> Government Senior Secondary School
Z26: =Master!B28 -> Rooppura (Kuchaman City)

Sheet Fixation
A1: =Master!$A$2 -> dk;kZy; jktdh; mPp ek/;fed fo|ky;] :iiwjk ¼dqpkeu flVh½
A2: dk;kZy; vkns'k
A3: Jheku ftyk f'k{kk vf/kdkjh eq[;ky; ek/;fed ukxkSj ds vkns'k Øekad%& ftf'kv@eq-ek@uk@laLFkk&1@osr-fu;fer@2020@702 fnukad%& 08-06-2020 dh vuqikyuk esa Jh jru yky j.koka in dfu"B lgk;d ds bl fo|ky; esa dfu"B lgk;d ds in ij dk;Zxzg.k djus dh fnukad 09-03-2018 ls nks o"kZ dh ifjoh{kk/khu izf'k{k.kkFkhZ dh vof/k fnukad 08-03-2020 dks larks"kizn :i ls iw.kZ fd;s tkus ij jktLFkku flfoy lsok ¼iqujhf{kr osrueku½ fu;e 2017 esa vafdr izko/kkukuqlkj fnukad 09-03-2020 ls dfu"B lgk;d ds in dh is&eSfVªd ysoy ,y5 esa U;wure osru :i, 20800 ,oa fu;ekuqlkj vU; HkŸks vkgj.k djus dh Loh—fr ,oa 7th is ds foŸk foHkkx ds uksfVfQds'ku fnukad 30-10-2017 ds fcUnq la[;k 13¼2½ ds vuqlkj fu;fer okf"kZd osru o`f) dh Loh—fr ,rn}kjk iznku dh tkrh gS%& | M3: ;s vkns'k mnkgj.kkFkZ gS] vki bls vius vuqlkj lq/kkj dj ysos A
A4: Ø-la- | B4: uke dkfeZd | C4: in | D4: tUefrfFk | E4: dk;Z xzg.k frfFk | F4: LFkk;hdj.k frfFk ,oa fu;fer osru J[kyk izkfIr frfFk | G4: Loh—r jfuax is cS.M | H4: is&eSfVªDl ysoy | I4: osru | J4: vkxkeh okf"kZd osru o`f) fnukad | K4: osru
A5: =IF(B5="","",ROWS($A$1:A1)) -> 1 | B5: =Master!C3 -> Ashwini Kumar | C5: =Master!C5 -> Senior Teacher | D5: 2020-01-01 | G5: =IFERROR(HLOOKUP(H5,'7th pay chart'!$B$58:$Y$60,2,0)&"-"&HLOOKUP(H5,'7th pay chart'!$B$58:$Y$60,3,0),"") -> 20800-65900 | H5: L-5 | I5: =IFERROR(HLOOKUP(H5,'7th pay chart'!$B$58:$Y$60,2,0),0) -> 20800 | K5: =IFERROR(MROUND(I5*1.03,100),0) -> 21400
A6: =IF(B6="","",ROWS($A$1:A1)) ->  | G6: =IFERROR(HLOOKUP(H6,'7th pay chart'!$B$58:$Y$60,2,0)&"-"&HLOOKUP(H6,'7th pay chart'!$B$58:$Y$60,3,0),"") ->  | I6: =IFERROR(HLOOKUP(H6,'7th pay chart'!$B$58:$Y$60,2,0),0) -> 0 | K6: =IFERROR(MROUND(I6*1.03,100),0) -> 0
A7: =IF(B7="","",ROWS($A$1:A2)) ->  | G7: =IFERROR(HLOOKUP(H7,'7th pay chart'!$B$58:$Y$60,2,0)&"-"&HLOOKUP(H7,'7th pay chart'!$B$58:$Y$60,3,0),"") ->  | I7: =IFERROR(HLOOKUP(H7,'7th pay chart'!$B$58:$Y$60,2,0),0) -> 0 | K7: 0
A8: =IF(B8="","",ROWS($A$1:A3)) ->  | G8: =IFERROR(HLOOKUP(H8,'7th pay chart'!$B$58:$Y$60,2,0)&"-"&HLOOKUP(H8,'7th pay chart'!$B$58:$Y$60,3,0),"") ->  | I8: =IFERROR(HLOOKUP(H8,'7th pay chart'!$B$58:$Y$60,2,0),0) -> 0 | K8: 0
A9: =IF(B9="","",ROWS($A$1:A4)) ->  | G9: =IFERROR(HLOOKUP(H9,'7th pay chart'!$B$58:$Y$60,2,0)&"-"&HLOOKUP(H9,'7th pay chart'!$B$58:$Y$60,3,0),"") ->  | I9: =IFERROR(HLOOKUP(H9,'7th pay chart'!$B$58:$Y$60,2,0),0) -> 0 | K9: 0
A10: =IF(B10="","",ROWS($A$1:A5)) ->  | G10: =IFERROR(HLOOKUP(H10,'7th pay chart'!$B$58:$Y$60,2,0)&"-"&HLOOKUP(H10,'7th pay chart'!$B$58:$Y$60,3,0),"") ->  | I10: =IFERROR(HLOOKUP(H10,'7th pay chart'!$B$58:$Y$60,2,0),0) -> 0 | K10: 0
H12: =Master!$B$26 -> Principal
H13: =Master!$B$27 -> Government Senior Secondary School
H14: =Master!$B$28 -> Rooppura (Kuchaman City)
A15: Øekad%& | I15: fnukad%&
A16: izfrfyfi&
A17: 1-Jheku funs’kd ek/;fed f’k{kk jktLFkku]chdkusj
A18: 2-Jheku ftyk f'k{kk vf/kdkjh ek/;0¼eq0½---------------------------
A19: 3-Jheku dks"kkf/kdkjh@midks"kkf/kdkjh------------------------------------
A20: 4-lacf/kr dkfeZd-------------------------------------------------------------------------
A21: 5- ys[kk 'kk[kk izfr@dk;kZy; izfr | H21: =Master!$B$26 -> Principal
H22: =Master!$B$27 -> Government Senior Secondary School
H23: =Master!$B$28 -> Rooppura (Kuchaman City)

Sheet ACP
A1: =Master!$A$2 -> dk;kZy; jktdh; mPp ek/;fed fo|ky;] :iiwjk ¼dqpkeu flVh½
A2: dk;kZy; vkns'k | S2: 9 वर्षीय
S3: 18 वर्षीय
A4: jktLFkku ljdkj foRr foHkkx ds vkns'kkad F15(1)/FD@Rules/2017 t;iqj fnukad 30-10-2017 ds vuqlkj esa jktLFkku flfoy lsok ¼iqujhf{kr osrueku½ fu;e] 2017 f}rh; la’kks/ku ds fu;e 14 ,oa 15 ds rgr Jheku ftyk f'k{kk vf/kdkjh ¼eq[;ky;½ izkjfEHkd f'k{kk-------------------ds vkns'kkad&----------------------------- fnukad%& 05-03-2020 dh vuqikyuk esa bl fo|ky; ds fuEukafdr dkfeZd dk muds uke ds lEeq[k vafdr frfFk ls ,0 lh0 ih0 ( Assured Career Progression ) dh Lohd`fr iznku fd;s tkus ds QyLo:i fuEukuqlkj osru fu/kkZj.k fd;k tkdj osru vkgj.k djus dh Lohd`fr iznku dh tkrh gS%& | L4: ;s vkns'k mnkgj.kkFkZ gS] vki bls vius vuqlkj lq/kkj dj ysos A | S4: 27 वर्षीय
A5: Ø-la- | B5: uke deZpkjh o in uke | C5: fu;fer fu;qfDr frfFk | D5: orZeku is eSfVªd ysoy | E5: orZeku ewy osru | F5: Lohd`r ,0 lh0 ih0 esa osru fu/kkZj.k | S5: 20 वर्षीय
F6: Lskok vof/k o"kksZ esa ,oa ns; ,lhih | G6: ,lhih Lohd`fr dh fnukad | H6: ,lhih esa Lohd`r ysoy la[;k | I6: fu/kkZfjr osru | J6: vkxkeh osru o`f} frfFk | S6: 30 वर्षीय
A7: =IF(B7="","",ROWS($A$1:A1)) ->  | D7: L-1 | H7: L-1 | S7: से प्रथम ACP
A8: =IF(B8="","",ROWS($A$1:A2)) ->  | S8: से द्वितीय ACP
A9: =IF(B9="","",ROWS($A$1:A3)) ->  | S9: से तृतीय ACP
A10: =IF(B10="","",ROWS($A$1:A4)) -> 
A11: =IF(B11="","",ROWS($A$1:A4)) -> 
A12: =IF(B12="","",ROWS($A$1:A5)) -> 
H14: =Master!$B$26 -> Principal
H15: =Master!$B$27 -> Government Senior Secondary School
H16: =Master!$B$28 -> Rooppura (Kuchaman City)
A17: Øekad%& | I17: fnukad%&
A18: Ikzfrfyih %&
A19: 1- Jheku ftyk f'k{kk vf/kdkjh izkjfEHkd] ----------------
A20: 2- Jheku~ midks"kkf/kdkjh egksn;-----------
A21: 3- lacaf/kr dkfeZd Jh ------------------------
A22: 4- futh iaftdk lacaf/kr Jh ----------------------
A23: 5- ys[kk 'kk[kk dk;kZy; gktk A
A24: 6-dk;kZy; vkns'k iaftdk A
H25: =Master!$B$26 -> Principal
H26: =Master!$B$27 -> Government Senior Secondary School
H27: =Master!$B$28 -> Rooppura (Kuchaman City)

Sheet Notional
A1: =Master!$A$2 -> dk;kZy; jktdh; mPp ek/;fed fo|ky;] :iiwjk ¼dqpkeu flVh½
A2: dk;kZy; vkns'k | J2: ;s vkns'k mnkgj.kkFkZ gS] vki bls vius vuqlkj lq/kkj dj ysos A
A3: ekuuh; mPp U;k;ky; tks/kiqj@t;iqj ds fu.kZ;kuqlkj r`rh; Js.kh izkFkfed vksj mPp izkFkfed fo|ky; v/;kid HkrhZ a 2013 ds vUrxZr la'kksf/kr ,oa iqu% la'kksf/kr ifj.kke ls p;uksijkUr f'k{kdksa dks uks'kuy ifjykHk gsrq ikfjr fu.kZ; ds ikyukFkZ Jheku ofj"B fof/k ijke'khZ izkjfEHkd f'k{kk ¼fof/k izdks"B½ jktLFkku t;iqj ds i=kad i-18¼279½ izk-f'k@fo-iz-@18@t;iqj fnukad 20-11-2018 dh vuqikyuk esa Jheku~ ftyk f'k{kk vf/kdkjh ¼eq[;ky;½ izkjfEHkd f'k{kk -------------- ds vkns'k Øekad -------------------- fnukad ----------------- ds vuqlkj ¼uke deZpkjh ,oa inLFkiu LFkku fy[ksa½] okLrfod izFke dk;Zxzg.k frfFk ----------------------------------dks ekuuh; U;k;ky; ds fu.kZ;kuqlkj uks'kuy@ofj"Brk ifjykHk gsrq fu/kkZfjr frfFk ¼izFke ifj.kke fu;qDr f'k{kdks dh dk;Zxzg.k frfFk½ ------------------ ls uks'kuy ifjykHk gsrq LFkk;hdj.k frfFk ------------------------ djus ,oa Jheku~ ftyk f'k{kk vf/kdkjh ¼eq[;ky;½ izkjfEHkd f'k{kk---------------- ds vkns'k Øekad----------------------------------------- fnukad------------------------ ds vuqlkj fnukad-------------------- dks LFkk;hdj.k fd;s tkus ij fuEukuqlkj osru fu/kkZj.k fd;k tkrk gS %&
A4: okLrfod izFke dk;Zxzg.k frfFk 07-10-2017 ¼e/;kà iwoZ½ ij ns; osru | C4: ekuuh; U;k;ky; ds fu.kZ;kuqlkj uks'kuy ifjykHk gsrq fu/kkZfjr frfFk 15-04-2015 dks ns; osru | E4: ekuuh; U;k;ky; ds fu.kZ;kuqlkj uks'kuy ifjykHk gsrq LFkk;hdj.k frfFk 15-04-2017 dks ns; osru | G4: okLrfod LFkk;hdj.k frfFk 07-10-2019 dks ns; osru
A5: 23700 FIX | C5: 23700 FIX ¼uks'kuy½ | E5: 33800 ¼uks'kuy½ | G5: 36900
A6: fnukad 15-04-2017 ls fnukad 07-10-2019 ds e/; ns; ¼uks'kuy½ okf"kZd osru o`f);ksa dk fooj.k
A7: okf"kZd osru o`f) frfFk | D7: osru o`f) frfFk dks ns; osru | F7: YkkHk dk izdkj | G7: fo-fooj.k
A8: 01.07.2017 | D8: 34800 | F8: uks'kuy | G8: okf"kZd osru o`f)
A9: 01.07.2018 | D9: 35800 | F9: uks'kuy | G9: okf"kZd osru o`f)
A10: 01.07.2019 | D10: 36900 | F10: uks'kuy | G10: okf"kZd osru o`f)
A11: 07.10.2019 | D11: 36900 | F11: okLrfod | G11: okLrfod LFkk;hdj.k frfFk
E13: =Master!$B$26 -> Principal
E14: =Master!$B$27 -> Government Senior Secondary School
E15: =Master!$B$28 -> Rooppura (Kuchaman City)
A17: Øekad %& | F17: fnukad %& --------------------------------
A18: Ikzfrfyih %&
A19: 1- Jheku ftyk f'k{kk vf/kdkjh izkjfEHkd-------------------
A20: 2- Jheku~ midks"kkf/kdkjh egksn;---------------------
A21: 3- lacaf/kr dkfeZd Jh ------------------------
A22: 4- futh iaftdk lacaf/kr Jh ----------------------
A23: 5- ys[kk 'kk[kk dk;kZy; gktk A
A24: 6-dk;kZy; vkns'k iaftdk A
E26: =Master!$B$26 -> Principal
E27: =Master!$B$27 -> Government Senior Secondary School
E28: =Master!$B$28 -> Rooppura (Kuchaman City)

Sheet Promotion
A1: =Master!$A$2 -> dk;kZy; jktdh; mPp ek/;fed fo|ky;] :iiwjk ¼dqpkeu flVh½
A2: dk;kZy; vkns'k
A4: Jheku mifuns'kd ek/;fed f'k{kk] vtesj e.My vtesj ds vkns'kkad%& -------------------------- fnukad%& o xfBr foHkkxh; inksUUkfr lfefr dh vfHk'ka"kkuqlkj Jh ---------------------------- r`rh; osru J`[kayk ls ofj"B v/;kid ¼fo"k;&-----½ in ij inksUufr mijkUr inLFkkiUu LFkkuh; fo|ky; es fd;s tkus ij jktLFkku flfoy lsok ¼iqujhf{kr osrueku½ fu;e 2017 ds vuqlkj lkros osrueku dh iS esfVªDl ysoy&00 ls ysoy&01 es fuEukuqlkj osru fu;ru fd;k tkrk gS%&
A6: Ø-la- | B6: uke deZpkjh | C6: in | D6: r`rh; osru J`[kyk esa ns; osru | F6: f}rh; osru J`[kyk esa dk;Zxzg.k frfFk | G6: f}rh; osru J`[kyk esa osru fu/kkZj.k i'pkr~ ns; osru | J6: vkxkeh osru o`f} | K6: fofo | M6: ;s vkns'k mnkgj.kkFkZ gS] vki bls vius vuqlkj lq/kkj dj ysos A
D7: ysoy | E7: ewy osru | G7: ns; frfFk | H7: ysoy | I7: fu;r osru
A8: =IF(B8="","",ROWS($A$1:A1)) -> 
A9: =IF(B9="","",ROWS($A$1:A2)) -> 
A10: =IF(B10="","",ROWS($A$1:A3)) -> 
A11: =IF(B11="","",ROWS($A$1:A4)) -> 
A12: =IF(B12="","",ROWS($A$1:A5)) -> 
I15: =Master!$B$26 -> Principal
I16: =Master!$B$27 -> Government Senior Secondary School
I17: =Master!$B$28 -> Rooppura (Kuchaman City)
A18: Øekad%& | G18: fnukad%&
A19: Ikzfrfyih %&
A20: 1- Jheku ftyk f'k{kk vf/kdkjh izkjfEHkd] ----------------
A21: 2- Jheku~ midks"kkf/kdkjh egksn;-----------
A22: 3- lacaf/kr dkfeZd Jh ------------------------
A23: 4- futh iaftdk lacaf/kr Jh ----------------------
A24: 5- ys[kk 'kk[kk dk;kZy; gktk A
A25: 6-dk;kZy; vkns'k iaftdk A
I26: =Master!$B$26 -> Principal
I27: =Master!$B$27 -> Government Senior Secondary School
I28: =Master!$B$28 -> Rooppura (Kuchaman City)

Sheet HRA
A1: =Master!$A$2 -> dk;kZy; jktdh; mPp ek/;fed fo|ky;] :iiwjk ¼dqpkeu flVh½
A2: dk;kZy; vkns'k
A4: fuEufyf[kr dkfeZdks dks muds }kjk çLrqr vkosnu i= ds vkèkkj ij jktLFkku ljdkj ds vkns'k Øekad: ,Q-6 ¼4½ ,Q- Mh-@:Yl@07 fnuk¡d& 12-09-2008 fnuk¡d 06-02-2009 ¼la'kksfèkr nj½ ,oa jktLFkku flfoy lsok ¼iqujhf{kr osrueku ½ 2017 ds foÙk foHkkx ds vkns'kkad ,Q-Mh-15¼1½ ,Q-Mh-@¼:Yl½ 2017 t;iqj fnukad 31&10&2017 ,oa lela[;d la'kksfèkr vkns'k fnukad 09&12&2017 ds çkoèkkukuqlkj jktLFkku lsok fu;eksa ds fu;e 7 ¼24½¼1½ esa ifjHkkf"kr osru ds fu;ekuqlkj edku fdjk;k HkÙkk muds uke ds lkeus vafdr fnuk¡d ls jktLFkku ljdkj ds vkns'kkuqlkj Loh—r fd;k tkrk gS& | I4: ;s vkns'k mnkgj.kkFkZ gS] vki bls vius vuqlkj lq/kkj dj ysos A
A5: Ø-l- | B5: uke dkfeZd | C5: in | D5: ysoy | E5: edku fdjk;k HkÙkk ns; frfFk | F5: ewy osru | G5: edku fdjk;k HkÙkk
G6: 0.08
A7: =IF(B7="","",ROWS($A$1:A1)) -> 1 | B7: Jh jru yky j.koka | D7: L-5 | F7: 20800 | G7: =ROUND(F7*G6,0) -> 1664
A8: =IF(B8="","",ROWS($A$1:A2)) -> 
A9: =IF(B9="","",ROWS($A$1:A3)) -> 
A10: =IF(B10="","",ROWS($A$1:A4)) -> 
A11: =IF(B11="","",ROWS($A$1:A5)) -> 
A12: =IF(B12="","",ROWS($A$1:A6)) -> 
F14: =Master!$B$26 -> Principal
F15: =Master!$B$27 -> Government Senior Secondary School
F16: =Master!$B$28 -> Rooppura (Kuchaman City)
A17: Øekad%& | F17: fnukad%&
A18: Ikzfrfyih %&
A19: 1- Jheku ftyk f'k{kk vf/kdkjh izkjfEHkd] ----------------
A20: 2- Jheku~ midks"kkf/kdkjh egksn;-----------
A21: 3- lacaf/kr dkfeZd Jh ------------------------
A22: 4- futh iaftdk lacaf/kr Jh ----------------------
A23: 5- ys[kk 'kk[kk dk;kZy; gktk A
A24: 6-dk;kZy; vkns'k iaftdk A
F26: =Master!$B$26 -> Principal
F27: =Master!$B$27 -> Government Senior Secondary School
F28: =Master!$B$28 -> Rooppura (Kuchaman City)

Sheet 7th pay chart
A1: Existing R.P.Band | B1: PB-1 5200-20200 | K1: PB-2 9300-34800 | O1: PB-3 15600-39100 | W1: PB-4 37400-67000
A2: Exist.G.P. | B2: 1700 | C2: 1750 | D2: 1900 | E2: 2000 | F2: 2400 | G2: 2400 | H2: 2400 | I2: 2800 | J2: 2800 | K2: 3600 | L2: 4200 | M2: 4800 | N2: 5400 | O2: 5400 | P2: 6000 | Q2: 6600 | R2: 6800 | S2: 7200 | T2: 7600 | U2: 8200 | V2: 8700 | W2: 8900 | X2: 9500 | Y2: 10000
A3: Exist.G.P.No | B3: 2 | C3: 3 | D3: 4 | E3: 5 | F3: 9 | G3: 9A | H3: 9B | I3: 10 | J3: 10A | K3: 11 | L3: 12 | M3: 14 | N3: 15 | O3: 15 | P3: 16 | Q3: 17 | R3: 18 | S3: 19 | T3: 20 | U3: 21 | V3: 22 | W3: 23 | X3: 23A | Y3: 24
A4: Levels → | B4: L-1 | C4: L-2 | D4: L-3 | E4: L-4 | F4: L-5 | G4: L-6 | H4: L-7 | I4: L-8 | J4: L-9 | K4: L-10 | L4: L-11 | M4: L-12 | N4: L-13 | O4: L-14 | P4: L-15 | Q4: L-16 | R4: L-17 | S4: L-18 | T4: L-19 | U4: L-20 | V4: L-21 | W4: L-22 | X4: L-23 | Y4: L-24
A5: Cell No. ↓ | B5: 1 | C5: 2 | D5: 3 | E5: 4 | F5: 5 | G5: 6 | H5: 7 | I5: 8 | J5: 9 | K5: 10 | L5: 11 | M5: 12 | N5: 13 | O5: 14 | P5: 15 | Q5: 16 | R5: 17 | S5: 18 | T5: 19 | U5: 20 | V5: 21 | W5: 22 | X5: 23 | Y5: 24
A6: 1 | B6: 17700 | C6: 17900 | D6: 18200 | E6: 19200 | F6: 20800 | G6: 21500 | H6: 22400 | I6: 26300 | J6: 28700 | K6: 33800 | L6: 37800 | M6: 44300 | N6: 53100 | O6: 56100 | P6: 60700 | Q6: 67300 | R6: 71000 | S6: 75300 | T6: 79900 | U6: 88900 | V6: 123100 | W6: 129700 | X6: 145800 | Y6: 148800
A7: 2 | B7: 18200 | C7: 18400 | D7: 18700 | E7: 19800 | F7: 21400 | G7: 22100 | H7: 23100 | I7: 27100 | J7: 29600 | K7: 34800 | L7: 38900 | M7: 45600 | N7: 54700 | O7: 57800 | P7: 62500 | Q7: 69300 | R7: 73100 | S7: 77600 | T7: 82300 | U7: 91600 | V7: 126800 | W7: 133600 | X7: 150200 | Y7: 153300
A8: 3 | B8: 18700 | C8: 19000 | D8: 19300 | E8: 20400 | F8: 22000 | G8: 22800 | H8: 23800 | I8: 27900 | J8: 30500 | K8: 35800 | L8: 40100 | M8: 47000 | N8: 56300 | O8: 59500 | P8: 64400 | Q8: 71400 | R8: 75300 | S8: 79900 | T8: 84800 | U8: 94300 | V8: 130600 | W8: 137600 | X8: 154700 | Y8: 157900
A9: 4 | B9: 19300 | C9: 19600 | D9: 19900 | E9: 21000 | F9: 22700 | G9: 23500 | H9: 24500 | I9: 28700 | J9: 31400 | K9: 36900 | L9: 41300 | M9: 48400 | N9: 58000 | O9: 61300 | P9: 66300 | Q9: 73500 | R9: 77600 | S9: 82300 | T9: 87300 | U9: 97100 | V9: 134500 | W9: 141700 | X9: 159300 | Y9: 162600
A10: 5 | B10: 19900 | C10: 20200 | D10: 20500 | E10: 21600 | F10: 23400 | G10: 24200 | H10: 25200 | I10: 29600 | J10: 32300 | K10: 38000 | L10: 42500 | M10: 49900 | N10: 59700 | O10: 63100 | P10: 68300 | Q10: 75700 | R10: 79900 | S10: 84800 | T10: 89900 | U10: 100000 | V10: 138500 | W10: 146000 | X10: 164100 | Y10: 167500
A11: 6 | B11: 20500 | C11: 20800 | D11: 21100 | E11: 22200 | F11: 24100 | G11: 24900 | H11: 26000 | I11: 30500 | J11: 33300 | K11: 39100 | L11: 43800 | M11: 51400 | N11: 61500 | O11: 65000 | P11: 70300 | Q11: 78000 | R11: 82300 | S11: 87300 | T11: 92600 | U11: 103000 | V11: 142700 | W11: 150400 | X11: 169000 | Y11: 172500
A12: 7 | B12: 21100 | C12: 21400 | D12: 21700 | E12: 22900 | F12: 24800 | G12: 25600 | H12: 26800 | I12: 31400 | J12: 34300 | K12: 40300 | L12: 45100 | M12: 52900 | N12: 63300 | O12: 67000 | P12: 72400 | Q12: 80300 | R12: 84800 | S12: 89900 | T12: 95400 | U12: 106100 | V12: 147000 | W12: 154900 | X12: 174100 | Y12: 177700
A13: 8 | B13: 21700 | C13: 22000 | D13: 22400 | E13: 23600 | F13: 25500 | G13: 26400 | H13: 27600 | I13: 32300 | J13: 35300 | K13: 41500 | L13: 46500 | M13: 54500 | N13: 65200 | O13: 69000 | P13: 74600 | Q13: 82700 | R13: 87300 | S13: 92600 | T13: 98300 | U13: 109300 | V13: 151400 | W13: 159500 | X13: 179300 | Y13: 183000
A14: 9 | B14: 22400 | C14: 22700 | D14: 23100 | E14: 24300 | F14: 26300 | G14: 27200 | H14: 28400 | I14: 33300 | J14: 36400 | K14: 42700 | L14: 47900 | M14: 56100 | N14: 67200 | O14: 71100 | P14: 76800 | Q14: 85200 | R14: 89900 | S14: 95400 | T14: 101200 | U14: 112600 | V14: 155900 | W14: 164300 | X14: 184700 | Y14: 188500
A15: 10 | B15: 23100 | C15: 23400 | D15: 23800 | E15: 25000 | F15: 27100 | G15: 28000 | H15: 29300 | I15: 34300 | J15: 37500 | K15: 44000 | L15: 49300 | M15: 57800 | N15: 69200 | O15: 73200 | P15: 79100 | Q15: 87800 | R15: 92600 | S15: 98300 | T15: 104200 | U15: 116000 | V15: 160600 | W15: 169200 | X15: 190200 | Y15: 194200
A16: 11 | B16: 23800 | C16: 24100 | D16: 24500 | E16: 25800 | F16: 27900 | G16: 28800 | H16: 30200 | I16: 35300 | J16: 38600 | K16: 45300 | L16: 50800 | M16: 59500 | N16: 71300 | O16: 75400 | P16: 81500 | Q16: 90400 | R16: 95400 | S16: 101200 | T16: 107300 | U16: 119500 | V16: 165400 | W16: 174300 | X16: 195900 | Y16: 200000
A17: 12 | B17: 24500 | C17: 24800 | D17: 25200 | E17: 26600 | F17: 28700 | G17: 29700 | H17: 31100 | I17: 36400 | J17: 39800 | K17: 46700 | L17: 52300 | M17: 61300 | N17: 73400 | O17: 77700 | P17: 83900 | Q17: 93100 | R17: 98300 | S17: 104200 | T17: 110500 | U17: 123100 | V17: 170400 | W17: 179500 | X17: 201800 | Y17: 206000
A18: 13 | B18: 25200 | C18: 25500 | D18: 26000 | E18: 27400 | F18: 29600 | G18: 30600 | H18: 32000 | I18: 37500 | J18: 41000 | K18: 48100 | L18: 53900 | M18: 63100 | N18: 75600 | O18: 80000 | P18: 86400 | Q18: 95900 | R18: 101200 | S18: 107300 | T18: 113800 | U18: 126800 | V18: 175500 | W18: 184900 | X18: 207900 | Y18: 212200
A19: 14 | B19: 26000 | C19: 26300 | D19: 26800 | E19: 28200 | F19: 30500 | G19: 31500 | H19: 33000 | I19: 38600 | J19: 42200 | K19: 49500 | L19: 55500 | M19: 65000 | N19: 77900 | O19: 82400 | P19: 89000 | Q19: 98800 | R19: 104200 | S19: 110500 | T19: 117200 | U19: 130600 | V19: 180800 | W19: 190400 | X19: 214100 | Y19: 218600
A20: 15 | B20: 26800 | C20: 27100 | D20: 27600 | E20: 29000 | F20: 31400 | G20: 32400 | H20: 34000 | I20: 39800 | J20: 43500 | K20: 51000 | L20: 57200 | M20: 67000 | N20: 80200 | O20: 84900 | P20: 91700 | Q20: 101800 | R20: 107300 | S20: 113800 | T20: 120700 | U20: 134500 | V20: 186200 | W20: 196100
A21: 16 | B21: 27600 | C21: 27900 | D21: 28400 | E21: 29900 | F21: 32300 | G21: 33400 | H21: 35000 | I21: 41000 | J21: 44800 | K21: 52500 | L21: 58900 | M21: 69000 | N21: 82600 | O21: 87400 | P21: 94500 | Q21: 104900 | R21: 110500 | S21: 117200 | T21: 124300 | U21: 138500 | V21: 191800 | W21: 202000
A22: 17 | B22: 28400 | C22: 28700 | D22: 29300 | E22: 30800 | F22: 33300 | G22: 34400 | H22: 36100 | I22: 42200 | J22: 46100 | K22: 54100 | L22: 60700 | M22: 71100 | N22: 85100 | O22: 90000 | P22: 97300 | Q22: 108000 | R22: 113800 | S22: 120700 | T22: 128000 | U22: 142700 | V22: 197600 | W22: 208100
A23: 18 | B23: 29300 | C23: 29600 | D23: 30200 | E23: 31700 | F23: 34300 | G23: 35400 | H23: 37200 | I23: 43500 | J23: 47500 | K23: 55700 | L23: 62500 | M23: 73200 | N23: 87700 | O23: 92700 | P23: 100200 | Q23: 111200 | R23: 117200 | S23: 124300 | T23: 131800 | U23: 147000 | V23: 203500
A24: 19 | B24: 30200 | C24: 30500 | D24: 31100 | E24: 32700 | F24: 35300 | G24: 36500 | H24: 38300 | I24: 44800 | J24: 48900 | K24: 57400 | L24: 64400 | M24: 75400 | N24: 90300 | O24: 95500 | P24: 103200 | Q24: 114500 | R24: 120700 | S24: 128000 | T24: 135800 | U24: 151400
A25: 20 | B25: 31100 | C25: 31400 | D25: 32000 | E25: 33700 | F25: 36400 | G25: 37600 | H25: 39400 | I25: 46100 | J25: 50400 | K25: 59100 | L25: 66300 | M25: 77700 | N25: 93000 | O25: 98400 | P25: 106300 | Q25: 117900 | R25: 124300 | S25: 131800 | T25: 139900 | U25: 155900
A26: 21 | B26: 32000 | C26: 32300 | D26: 33000 | E26: 34700 | F26: 37500 | G26: 38700 | H26: 40600 | I26: 47500 | J26: 51900 | K26: 60900 | L26: 68300 | M26: 80000 | N26: 95800 | O26: 101400 | P26: 109500 | Q26: 121400 | R26: 128000 | S26: 135800 | T26: 144100 | U26: 160600
A27: 22 | B27: 33000 | C27: 33300 | D27: 34000 | E27: 35700 | F27: 38600 | G27: 39900 | H27: 41800 | I27: 48900 | J27: 53500 | K27: 62700 | L27: 70300 | M27: 82400 | N27: 98700 | O27: 104400 | P27: 112800 | Q27: 125000 | R27: 131800 | S27: 139900 | T27: 148400 | U27: 165400
A28: 23 | B28: 34000 | C28: 34300 | D28: 35000 | E28: 36800 | F28: 39800 | G28: 41100 | H28: 43100 | I28: 50400 | J28: 55100 | K28: 64600 | L28: 72400 | M28: 84900 | N28: 101700 | O28: 107500 | P28: 116200 | Q28: 128800 | R28: 135800 | S28: 144100 | T28: 152900 | U28: 170400
A29: 24 | B29: 35000 | C29: 35300 | D29: 36100 | E29: 37900 | F29: 41000 | G29: 42300 | H29: 44400 | I29: 51900 | J29: 56800 | K29: 66500 | L29: 74600 | M29: 87400 | N29: 104800 | O29: 110700 | P29: 119700 | Q29: 132700 | R29: 139900 | S29: 148400 | T29: 157500 | U29: 175500
A30: 25 | B30: 36100 | C30: 36400 | D30: 37200 | E30: 39000 | F30: 42200 | G30: 43600 | H30: 45700 | I30: 53500 | J30: 58500 | K30: 68500 | L30: 76800 | M30: 90000 | N30: 107900 | O30: 114000 | P30: 123300 | Q30: 136700 | R30: 144100 | S30: 152900 | T30: 162200 | U30: 180800
A31: 26 | B31: 37200 | C31: 37500 | D31: 38300 | E31: 40200 | F31: 43500 | G31: 44900 | H31: 47100 | I31: 55100 | J31: 60300 | K31: 70600 | L31: 79100 | M31: 92700 | N31: 111100 | O31: 117400 | P31: 127000 | Q31: 140800 | R31: 148400 | S31: 157500 | T31: 167100 | U31: 186200
A32: 27 | B32: 38300 | C32: 38600 | D32: 39400 | E32: 41400 | F32: 44800 | G32: 46200 | H32: 48500 | I32: 56800 | J32: 62100 | K32: 72700 | L32: 81500 | M32: 95500 | N32: 114400 | O32: 120900 | P32: 130800 | Q32: 145000 | R32: 152900 | S32: 162200 | T32: 172100 | U32: 191800
A33: 28 | B33: 39400 | C33: 39800 | D33: 40600 | E33: 42600 | F33: 46100 | G33: 47600 | H33: 50000 | I33: 58500 | J33: 64000 | K33: 74900 | L33: 83900 | M33: 98400 | N33: 117800 | O33: 124500 | P33: 134700 | Q33: 149400 | R33: 157500 | S33: 167100 | T33: 177300 | U33: 197600
A34: 29 | B34: 40600 | C34: 41000 | D34: 41800 | E34: 43900 | F34: 47500 | G34: 49000 | H34: 51500 | I34: 60300 | J34: 65900 | K34: 77100 | L34: 86400 | M34: 101400 | N34: 121300 | O34: 128200 | P34: 138700 | Q34: 153900 | R34: 162200 | S34: 172100 | T34: 182600 | U34: 203500
A35: 30 | B35: 41800 | C35: 42200 | D35: 43100 | E35: 45200 | F35: 48900 | G35: 50500 | H35: 53000 | I35: 62100 | J35: 67900 | K35: 79400 | L35: 89000 | M35: 104400 | N35: 124900 | O35: 132000 | P35: 142900 | Q35: 158500 | R35: 167100 | S35: 177300 | T35: 188100
A36: 31 | B36: 43100 | C36: 43500 | D36: 44400 | E36: 46600 | F36: 50400 | G36: 52000 | H36: 54600 | I36: 64000 | J36: 69900 | K36: 81800 | L36: 91700 | M36: 107500 | N36: 128600 | O36: 136000 | P36: 147200 | Q36: 163300 | R36: 172100 | S36: 182600 | T36: 193700
A37: 32 | B37: 44400 | C37: 44800 | D37: 45700 | E37: 48000 | F37: 51900 | G37: 53600 | H37: 56200 | I37: 65900 | J37: 72000 | K37: 84300 | L37: 94500 | M37: 110700 | N37: 132500 | O37: 140100 | P37: 151600 | Q37: 168200 | R37: 177300 | S37: 188100 | T37: 199500
A38: 33 | B38: 45700 | C38: 46100 | D38: 47100 | E38: 49400 | F38: 53500 | G38: 55200 | H38: 57900 | I38: 67900 | J38: 74200 | K38: 86800 | L38: 97300 | M38: 114000 | N38: 136500 | O38: 144300 | P38: 156100 | Q38: 173200 | R38: 182600 | S38: 193700
A39: 34 | B39: 47100 | C39: 47500 | D39: 48500 | E39: 50900 | F39: 55100 | G39: 56900 | H39: 59600 | I39: 69900 | J39: 76400 | K39: 89400 | L39: 100200 | M39: 117400 | N39: 140600 | O39: 148600 | P39: 160800 | Q39: 178400 | R39: 188100 | S39: 199500
A40: 35 | B40: 48500 | C40: 48900 | D40: 50000 | E40: 52400 | F40: 56800 | G40: 58600 | H40: 61400 | I40: 72000 | J40: 78700 | K40: 92100 | L40: 103200 | M40: 120900 | N40: 144800 | O40: 153100 | P40: 165600 | Q40: 183800 | R40: 193700
A41: 36 | B41: 50000 | C41: 50400 | D41: 51500 | E41: 54000 | F41: 58500 | G41: 60400 | H41: 63200 | I41: 74200 | J41: 81100 | K41: 94900 | L41: 106300 | M41: 124500 | N41: 149100 | O41: 157700 | P41: 170600 | Q41: 189300 | R41: 199500
A42: 37 | B42: 51500 | C42: 51900 | D42: 53000 | E42: 55600 | F42: 60300 | G42: 62200 | H42: 65100 | I42: 76400 | J42: 83500 | K42: 97700 | L42: 109500 | M42: 128200 | N42: 153600 | O42: 162400 | P42: 175700 | Q42: 195000
A43: 38 | B43: 53000 | C43: 53500 | D43: 54600 | E43: 57300 | F43: 62100 | G43: 64100 | H43: 67100 | I43: 78700 | J43: 86000 | K43: 100600 | L43: 112800 | M43: 132000 | N43: 158200 | O43: 167300 | P43: 181000
A44: 39 | B44: 54600 | C44: 55100 | D44: 56200 | E44: 59000 | F44: 64000 | G44: 66000 | H44: 69100 | I44: 81100 | J44: 88600 | K44: 103600 | L44: 116200 | M44: 136000 | N44: 162900 | O44: 172300 | P44: 186400
A45: 40 | B45: 56200 | C45: 56800 | D45: 57900 | E45: 60800 | F45: 65900 | G45: 68000 | H45: 71200 | I45: 83500 | J45: 91300 | K45: 106700 | L45: 119700 | M45: 140100 | N45: 167800 | O45: 177500 | P45: 192000
B58: L-1 | C58: L-2 | D58: L-3 | E58: L-4 | F58: L-5 | G58: L-6 | H58: L-7 | I58: L-8 | J58: L-9 | K58: L-10 | L58: L-11 | M58: L-12 | N58: L-13 | O58: L-14 | P58: L-15 | Q58: L-16 | R58: L-17 | S58: L-18 | T58: L-19 | U58: L-20 | V58: L-21 | W58: L-22 | X58: L-23 | Y58: L-24
B59: 17700 | C59: 17900 | D59: 18200 | E59: 19200 | F59: 20800 | G59: 21500 | H59: 22400 | I59: 26300 | J59: 28700 | K59: 33800 | L59: 37800 | M59: 44300 | N59: 53100 | O59: 56100 | P59: 60700 | Q59: 67300 | R59: 71000 | S59: 75300 | T59: 79900 | U59: 88900 | V59: 123100 | W59: 129700 | X59: 145800 | Y59: 148800
B60: 56200 | C60: 56800 | D60: 57900 | E60: 60800 | F60: 65900 | G60: 68000 | H60: 71200 | I60: 83500 | J60: 91300 | K60: 106700 | L60: 119700 | M60: 140100 | N60: 167800 | O60: 177500 | P60: 192000 | Q60: 195000 | R60: 199500 | S60: 199500 | T60: 199500 | U60: 203500 | V60: 203500 | W60: 208100 | X60: 214100 | Y60: 218600
